Cogmind - Beta 12 --- EXPLORER MODE // 2023.08.27 @ 23:13:20 Player: Analote Result: Destroyed by S-43 Plague with Heavy Machine Gun Performance ------------- Evolutions (6) 3000 Regions Visited (17) 3400 Robots Destroyed (232) 1160 Value Destroyed (10253) 10253 Prototype IDs (9) 180 Alien Tech Used (2) 400 Bonus (958) 958 TOTAL SCORE: 19351 Bonus ------- High Alert Combat Kills 258 Network Hubs Disabled 400 Met Zhirov 300 Cogmind --------- Core Integrity 0/1150 Matter 246/300 Energy 100/100 System Corruption 7% Temperature Cool (0) Movement Core (50) Location -3/Proximity Caves Parts ------- > --- POWER (3) -------- (None) > --- PROPULSION (5) --- (None) > --- UTILITY (7) ------ Improved Armor Integrity Analyzer > --- WEAPON (5) ------- (None) > --- INVENTORY (5) ---- Improved Phase Shifter Point Defense Array Long-range Tractor Beam Peak State ------------ > --- POWER ------------ Neutrino Core Particle Reactor Particle Reactor > --- PROPULSION ------- Medium Treads Medium Treads Centrium Heavy Treads > --- UTILITY ---------- Improved Cryofiber Web Advanced Heat Sink Advanced Heat Sink Improved Core Shielding Layered Medium Armor Plating Centrium Medium Armor Plating Long-range Tractor Beam > --- WEAPON ----------- Advanced Variable Charge Gun Heavy Machine Gun Heavy Machine Gun Advanced KE Penetrator > --- INVENTORY -------- Micro Fission Core Hypervelocity Gauss Rifle Hypervelocity Gauss Rifle Hypervelocity Coil Gun [Rating: 113] Favorites ----------- Power Light Fission Core Engine Light Ion Engine Power Core Light Fission Core Reactor Particle Reactor Propulsion Carbon-fiber Leg Treads Improved Treads Leg Carbon-fiber Leg Hover Unit Aerolev Unit Utility Advanced Heat Sink Device Advanced Heat Sink Storage Large Storage Unit Processor Target Analyzer Hackware Hacking Suite Protection Improved Core Shielding Weapon Hypervelocity Gauss Rifle Energy Gun Heavy EM Shotgun Energy Cannon Particle Cannon Ballistic Gun Hypervelocity Gauss Rifle Ballistic Cannon Hypervelocity Gauss Cannon Build | -11 -10 -9 -8 -7 -6 -6 -6 -5 -5 -5 -5 -5 -4 -4 -4 -4 -3 ------- Run | Jun Mat Mat Mat Fac Fac Was Fac Fac Ext Cet Arc Hub Fac Upp Upp Zhi Pro Slots Evolved 13 | . 1 2 2 2 2 . . 2 . . . . 2 . . . . Power 2 | . . . . 1 . . . 1 . . . . . . . . . Propulsion 3 | . . . . . 1 . . 1 . . . . 1 . . . . Utility 5 | . 1 1 2 1 . . . . . . . . . . . . . Weapon 3 | . . 1 . . 1 . . . . . . . 1 . . . . Parts Attached 145 | 7 3 2 16 5 7 3 26 11 7 10 4 14 14 5 3 1 7 Power 22 | 1 . . 2 1 1 1 4 5 . . 2 2 2 . . . 1 Engine 11 | 1 . . 2 1 1 1 2 1 . . . 1 1 . . . . Core 9 | . . . . . . . 2 4 . . . 1 1 . . . 1 Reactor 2 | . . . . . . . . . . . 2 . . . . . . Propulsion 27 | 2 . . 6 1 1 2 5 1 1 1 1 1 2 1 2 . . Treads 8 | . . . . . . . . . . 1 1 1 2 1 2 . . Leg 17 | 2 . . 4 1 1 2 5 1 1 . . . . . . . . Wheel . | . . . . . . . . . . . . . . . . . . Hover 2 | . . . 2 . . . . . . . . . . . . . . Flight . | . . . . . . . . . . . . . . . . . . Utility 49 | 2 1 1 3 3 2 . 8 4 2 3 1 9 4 1 1 1 3 Device 24 | . . 1 1 . 1 . 5 3 1 2 . 4 2 1 1 . 2 Storage 4 | . 1 . . . . . 1 . . . . 2 . . . . . Processor 3 | . . . . . . . 1 . . . . . 1 . . . 1 Hackware 3 | . . . . 2 . . . . . . . . . . . 1 . Protection 15 | 2 . . 2 1 1 . 1 1 1 1 1 3 1 . . . . Artifact . | . . . . . . . . . . . . . . . . . . Weapon 47 | 2 2 1 5 . 3 . 9 1 4 6 . 2 6 3 . . 3 Energy Gun 16 | . . . 5 . 2 . 3 1 1 1 . 1 1 . . . 1 Energy Cannon 6 | . 2 1 . . 1 . 1 . . . . . 1 . . . . Ballistic Gun 18 | 2 . . . . . . 3 . 2 5 . 1 2 1 . . 2 Ballistic Cannon 7 | . . . . . . . 2 . 1 . . . 2 2 . . . Launcher . | . . . . . . . . . . . . . . . . . . Special Weapon . | . . . . . . . . . . . . . . . . . . Impact Weapon . | . . . . . . . . . . . . . . . . . . Slashing Weapon . | . . . . . . . . . . . . . . . . . . Piercing Weapon . | . . . . . . . . . . . . . . . . . . Special Melee Weapon . | . . . . . . . . . . . . . . . . . . Unidentified Prototypes 11 | . . . 4 . . . . . . 4 . 1 . . . 2 . Parts Lost 72 | . . . . 1 1 8 10 2 1 12 . 7 3 1 2 13 11 Power 12 | . . . . . . 1 2 1 . 2 . 2 . . . 3 1 Propulsion 17 | . . . . . . 4 2 . . 3 . 2 1 . 2 3 . Utility 22 | . . . . 1 . 1 2 . 1 4 . 2 1 1 . 3 6 Weapon 21 | . . . . . 1 2 4 1 . 3 . 1 1 . . 4 4 Highest Loss Streak 13 | . . . . 1 1 6 6 1 1 11 . 7 2 1 2 13 10 To Critical Strikes 1 | . . . . . . . . . . 1 . . . . . . . Average Slot Usage (%) 83 | . 100 97 98 99 96 60 61 97 99 68 77 88 80 81 89 73 47 Engine 5 | . 12 10 8 14 12 7 5 4 . . . 2 5 5 5 3 . Core 6 | . . . . . . . 5 10 16 7 5 5 10 10 10 7 3 Treads 4 | . . . . . . . . . . 3 9 15 10 11 17 11 . Leg 10 | . 25 20 15 14 18 11 10 22 22 2 . . . . . . . Device 17 | . . 7 14 14 10 3 10 25 26 20 19 22 19 20 21 19 17 Storage 4 | . 12 10 8 7 6 3 . . . . . 2 10 10 10 8 3 Processor 1 | . . . . . . . 4 3 . . . . . . . . 5 Hackware 1 | . . . . 12 12 9 . . . . . . . . . 1 5 Protection 8 | . 25 20 24 14 11 8 2 7 10 10 13 9 3 2 . . . Energy Gun 7 | . . . 18 21 22 10 4 5 6 4 5 8 7 5 5 3 . Energy Cannon 4 | . 21 30 6 . 2 3 1 . . . . . . 5 5 3 . Ballistic Gun 7 | . 3 . . . . . 9 16 13 15 16 13 10 4 5 5 12 Ballistic Cannon 2 | . . . . . . . 3 . . . . . 4 8 10 7 . Naked Turns 47 | . . . . . . 47 . . . . . . . . . . . Heaviest Build 105 | 11 25 30 37 41 53 52 43 72 69 69 99 105 96 100 101 101 42 Greatest Support 136 | 20 20 20 32 35 52 55 45 60 60 80 108 136 126 74 125 69 3 Greatest Overweight (x) 13 | . 1 1 4 1 1 1 9 1 1 3 . . 2 2 1 9 13 Average Overweight (x) . | . 1 1 1 1 . . . . . . . . . 1 . 2 4 Largest Inventory Capacity 15 | 5 10 10 10 10 10 10 5 5 5 5 5 15 15 15 15 15 15 Average Capacity 9 | 5 10 10 10 10 10 7 5 5 5 5 5 7 15 15 15 15 12 Most Carried 11 | 4 5 6 9 8 6 6 4 5 5 5 5 8 9 9 9 11 9 Average Carried 4 | 1 4 4 6 6 4 4 1 3 4 4 4 4 4 6 7 9 3 Final Capacity 15 | 5 10 10 10 10 10 5 5 5 5 5 5 15 15 15 15 15 5 Final Carried 10 | 2 5 5 8 7 4 4 4 4 5 5 5 8 9 6 9 10 3 Class Distribution -------------------- 28% | Scavenger-Tank 22% | Hacker-Tank 15% | Scavenger-Skirmisher 12% | Scavenger-Gunner 8% | Hacker-Mutant 5% | Hacker-Gunner 4% | Scavenger-Mutant Dominant Class ---------------- Hacker-Mutant | -10/Materials Hacker-Tank | -9/Materials Hacker-Tank | -8/Materials Hacker-Tank | -7/Factory Hacker-Tank | -6/Factory Hacker-Tank | -6/Waste Scavenger-Gunner | -6/Factory Scavenger-Tank | -5/Factory Scavenger-Tank | -5/Extension Scavenger-Tank | -5/Cetus Scavenger-Tank | -5/Archives Scavenger-Tank | -5/Hub_04(d) Scavenger-Skirmisher | -4/Factory Scavenger-Skirmisher | -4/Upper Caves Scavenger-Skirmisher | -4/Upper Caves Scavenger-Skirmisher | -4/Zhirov Hacker-Gunner | -3/Proximity Caves Resources | -11 -10 -9 -8 -7 -6 -6 -6 -5 -5 -5 -5 -5 -4 -4 -4 -4 -3 ----------- Run | Jun Mat Mat Mat Fac Fac Was Fac Fac Ext Cet Arc Hub Fac Upp Upp Zhi Pro Matter Collected 6342 | 257 43 20 150 55 40 30 1100 707 986 786 262 809 438 208 398 . 53 Remotely 3118 | . . . . . . . . 587 986 786 262 497 . . . . . Salvage Created 11174 | . 161 713 908 466 607 . 1418 747 1175 1022 373 1772 760 425 627 . . Parts 535 | . 11 37 50 28 9 . 77 55 52 42 12 79 34 14 35 . . Haulers Intercepted 7 | . . 1 2 . . . . . 1 . . 3 . . . . . Recyclers Shooed 2 | . . . . . . . 1 . . . . . 1 . . . . Parts Field Recycled . | . . . . . . . . . . . . . . . . . . Retrieved Matter . | . . . . . . . . . . . . . . . . . . Parts Self-Destructed . | . . . . . . . . . . . . . . . . . . Prevented . | . . . . . . . . . . . . . . . . . . Kills | -11 -10 -9 -8 -7 -6 -6 -6 -5 -5 -5 -5 -5 -4 -4 -4 -4 -3 ------- Run | Jun Mat Mat Mat Fac Fac Was Fac Fac Ext Cet Arc Hub Fac Upp Upp Zhi Pro Combat Hostiles Destroyed 179 | . 5 12 12 7 7 . 28 9 20 20 4 23 8 10 14 . . Guns 127 | . . . 8 5 7 . 17 9 16 20 4 23 5 5 8 . . Cannons 47 | . 4 11 4 . . . 11 . 3 . . . 3 5 6 . . AOE 2 | . . . . 2 . . . . . . . . . . . . . Classes Destroyed 15 | . 2 3 4 4 . . 1 . . . . . 1 . . . . Worker 13 | . . . 1 . 1 . 2 . . . . 6 3 . . . . Builder 8 | . . . . 1 . . 2 1 . . . 4 . . . . . Tunneler 1 | . . . . . . . . . . . . . 1 . . . . Hauler 7 | . . 1 2 . . . . . 1 . . 3 . . . . . Recycler 2 | . . . 1 . . . . . . . . . 1 . . . . Operator 3 | . . . . 1 . . . . 1 . . 1 . . . . . Watcher 19 | . . 2 2 . 3 . 3 3 2 1 . 1 2 . . . . Swarmer 38 | . 2 . . . . . 3 . 8 7 . 5 . 6 7 . . Grunt 70 | . 3 6 6 3 3 . 14 . 8 5 . 15 2 3 2 . . Brawler 6 | . . . 1 . 2 . . . 1 1 . . 1 . . . . Duelist 2 | . . . 1 . . . 1 . . . . . . . . . . Sentry 27 | . . 6 4 2 1 . 2 1 1 . 4 1 3 1 1 . . Hunter 13 | . . . . 1 . . 2 4 2 2 . . . . 2 . . Programmer 17 | . . . . 1 1 . 5 4 . 1 . 1 2 . 2 . . Behemoth 1 | . . . . . . . 1 . . . . . . . . . . Cetus Guard 4 | . . . . . . . . . . 4 . . . . . . . Lightning 1 | . . . . . . . . . . . . 1 . . . . . Best Kill Streak 15 | . 2 4 6 3 3 . 4 3 4 10 1 15 7 4 5 . . Combat Bots Only 10 | . 2 3 3 3 3 . 3 3 4 10 1 7 3 4 5 . . Max Kills in Single Turn 6 | . 2 2 3 2 1 . 2 2 2 3 1 6 2 2 1 . . Gunslinging 2 | . . . 1 . . . 1 1 . 2 . 1 . . . . . Exploded 1 | . . . . 1 . . . . . . . . . . . . . Melee . | . . . . . . . . . . . . . . . . . . Uniques/NPCs Destroyed . | . . . . . . . . . . . . . . . . . . Combat | -11 -10 -9 -8 -7 -6 -6 -6 -5 -5 -5 -5 -5 -4 -4 -4 -4 -3 -------- Run | Jun Mat Mat Mat Fac Fac Was Fac Fac Ext Cet Arc Hub Fac Upp Upp Zhi Pro Damage Taken 10672 | . 68 262 228 448 243 253 1303 693 627 1257 301 1768 267 536 242 1173 1003 Core 1994 | . . 16 62 25 25 147 332 47 54 29 . 183 15 211 31 249 568 Absorbed by Shields 547 | . . . . . . . . 279 242 26 . . . . . . . Redirected to Shielding 256 | . 6 26 7 15 11 7 3 16 17 11 . 48 6 83 . . . Regen/Repaired (Parts) 386 | . . . 35 . 289 . . 62 . . . . . . . . . Core Remaining (%) 84 | 100 100 96 88 96 . . 40 . . . . 68 . . . . . Volleys Fired 498 | . 11 22 23 20 28 . 79 37 59 56 17 62 33 15 21 1 14 Largest 5 | . 2 3 3 3 4 . 4 4 4 4 4 4 5 5 5 5 3 Hottest 328 | . 136 204 204 161 240 . 246 174 216 180 180 210 273 328 328 328 105 Shots Fired 1588 | . 22 66 65 60 100 . 207 140 189 190 60 221 115 43 79 5 26 Gun 1265 | . . . 45 60 92 . 121 140 174 183 60 221 89 19 33 2 26 Cannon 323 | . 22 66 20 . 8 . 86 . 15 7 . . 26 24 46 3 . Launcher . | . . . . . . . . . . . . . . . . . . Special . | . . . . . . . . . . . . . . . . . . Kinetic 940 | . . . . . . . 162 103 163 162 51 136 76 15 45 3 24 Thermal 427 | . 22 66 22 20 64 . 17 15 20 28 9 48 30 28 34 2 2 Explosive . | . . . . . . . . . . . . . . . . . . Electromagnetic 221 | . . . 43 40 36 . 28 22 6 . . 37 9 . . . . Robot Hit Streak 50 | . 4 12 33 38 50 . 18 25 42 36 38 26 50 9 14 . 36 Robot Miss Streak 7 | . 2 1 1 2 5 . 7 5 4 3 1 3 3 3 2 . 1 Penetration Max 2 | . . . . . . . 2 1 1 1 . 1 1 . . . . Secondary Targets 25 | . . . 3 1 1 . 4 2 2 7 . 5 . . . . . Max Gunslinging Chain 3 | . . . 1 1 1 . 1 1 1 3 . 1 . . . . . Shots Hit Robots 1129 | . 11 41 52 50 72 . 154 99 138 107 54 164 94 28 39 . 26 Core Hits 513 | . 4 16 30 27 28 . 112 33 61 45 14 71 29 13 23 . 7 Critical Kills 61 | . 1 . . . . . 19 7 16 6 1 2 2 3 4 . . Critical Parts Destroyed 89 | . . . . . . . 10 19 27 7 3 9 10 2 . 2 . Critical Strikes 177 | . 1 . 2 1 4 . 32 27 49 14 6 13 15 6 4 2 1 Burn 5 | . . . . 1 4 . . . . . . . . . . . . Meltdown 1 | . 1 . . . . . . . . . . . . . . . . Destroy 163 | . . . . . . . 29 26 49 14 6 13 14 5 4 2 1 Blast 5 | . . . . . . . 3 . . . . . 1 1 . . . Corrupt 3 | . . . 2 . . . . 1 . . . . . . . . . Melee Attacks . | . . . . . . . . . . . . . . . . . . Impact . | . . . . . . . . . . . . . . . . . . Slashing . | . . . . . . . . . . . . . . . . . . Piercing . | . . . . . . . . . . . . . . . . . . Sneak Attacks . | . . . . . . . . . . . . . . . . . . Combat Hostiles . | . . . . . . . . . . . . . . . . . . Follow-up Attacks . | . . . . . . . . . . . . . . . . . . Damage Inflicted 23423 | . 288 900 1273 1057 1569 6 2848 883 1686 2443 1423 4706 1998 733 903 115 592 Guns 16711 | . . . 781 859 1352 . 881 883 1388 2356 1423 4300 1085 337 469 43 554 Cannons 5089 | . 288 900 299 . 83 . 1967 . 200 87 . . 363 396 434 72 . Explosions 1571 | . . . 193 198 134 . . . 97 . . 399 550 . . . . Melee . | . . . . . . . . . . . . . . . . . . Ramming 52 | . . . . . . 6 . . 1 . . 7 . . . . 38 Kinetic 12120 | . . . . . . . 2329 456 1231 2113 1163 2965 803 224 289 52 495 Thermal 7578 | . 288 900 534 490 987 . 284 292 352 330 260 1004 612 509 614 63 59 Explosive 550 | . . . . . . . . . . . . . 550 . . . . Electromagnetic 3123 | . . . 739 567 582 . 235 135 102 . . 730 33 . . . . Impact . | . . . . . . . . . . . . . . . . . . Slashing . | . . . . . . . . . . . . . . . . . . Piercing . | . . . . . . . . . . . . . . . . . . Highest Corruption 15 | . . . . 2 . . 2 5 6 8 8 15 1 1 2 5 5 Average Corruption 3 | . . . . 1 . . 1 4 5 6 8 8 1 1 1 2 5 Corruption Purged . | . . . . . . . . . . . . . . . . . . Corruption Blocked . | . . . . . . . . . . . . . . . . . . Effects 154 | . . . . 2 . . 9 12 47 20 7 30 3 6 9 2 7 Message Errors 36 | . . . . . . . 1 1 16 4 1 5 2 3 3 . . Matter Fused 34 | . . . . . . . 2 4 7 5 2 8 1 1 1 1 2 Heat Flow Errors 10 | . . . . . . . 1 . 5 1 . 1 . . 1 . 1 Energy Discharges 18 | . . . . 1 . . 1 1 4 6 1 3 . . . 1 . Parts Rejected 2 | . . . . . . . . 1 . . . 1 . . . . . Parts Fused 1 | . . . . . . . . . 1 . . . . . . . . Data Loss (minor) 22 | . . . . 1 . . 1 1 7 2 1 3 . 1 2 . 3 Data Loss (major) 4 | . . . . . . . . 2 1 . . . . 1 . . . Misfires 8 | . . . . . . . 3 . 3 . . 1 . . 1 . . Alerts 4 | . . . . . . . . . 1 . 2 . . . . . 1 Weapon Failures 15 | . . . . . . . . 2 2 2 . 8 . . 1 . . Overload Shots . | . . . . . . . . . . . . . . . . . . Overflow Damage 262 | . 1 . 8 . . . 21 . . . . 108 103 6 8 7 . Projectiles 43 | . 1 . . . . . 21 . . . . . . 6 8 7 . Explosions 219 | . . . 8 . . . . . . . . 108 103 . . . . Melee . | . . . . . . . . . . . . . . . . . . Knockbacks 10 | . . . . . . . 9 . . . . . 1 . . . . Impact . | . . . . . . . . . . . . . . . . . . Kinetic 10 | . . . . . . . 9 . . . . . 1 . . . . Secondary . | . . . . . . . . . . . . . . . . . . Self-Inflicted Damage 248 | . . . 12 57 . 3 . . . . . 116 43 . . . 17 Shots 6 | . . . 1 2 . . . . . . . 2 1 . . . . Rammed 12 | . . . . . . 1 . . . . . 2 . . . . 9 Targets Rammed 13 | . . . . . . 1 . . 1 . . 2 . . . . 9 Kicked 1 | . . . . . . . . . 1 . . . . . . . . Crushed . | . . . . . . . . . . . . . . . . . . Highest Temperature 688 | . 348 565 291 228 547 . 547 100 261 321 . 573 365 688 524 . 64 Average Temperature 171 | . 118 201 94 76 171 . 202 40 73 162 . 227 151 283 210 . 64 Received Heat Transfer 2113 | . 30 138 171 93 105 . 454 6 183 216 45 432 45 60 9 . 126 Effects 55 | . . 3 . 2 4 . 17 . . 1 . 10 . 17 1 . . Shutdowns 8 | . . . . . 1 . 5 . . . . . . 2 . . . Energy Bleed 6 | . . 1 . . 1 . 3 . . . . . . 1 . . . Interference 15 | . . 2 . 2 1 . . . . 1 . 3 . 6 . . . Matter Decay 4 | . . . . . . . 2 . . . . 1 . 1 . . . Short Circuit 6 | . . . . . 1 . 2 . . . . 2 . 1 . . . Damage (minor) 1 | . . . . . . . 1 . . . . . . . . . . Damage (major) 12 | . . . . . . . 4 . . . . 3 . 4 1 . . Damage (core) 3 | . . . . . . . . . . . . 1 . 2 . . . Siege Activations . | . . . . . . . . . . . . . . . . . . Robots Corrupted . | . . . . . . . . . . . . . . . . . . Combat Hostiles . | . . . . . . . . . . . . . . . . . . Parts Fried 9 | . . . 4 3 2 . . . . . . . . . . . . Impact Corruptions . | . . . . . . . . . . . . . . . . . . Robots Melted 3 | . 1 1 . . . . . . 1 . . . . . . . . Combat Hostiles 3 | . 1 1 . . . . . . 1 . . . . . . . . Parts Melted 23 | . 2 8 1 . 6 . . 2 . . 1 1 . 1 1 . . Heat Transferred 11348 | . 518 1591 792 755 1913 . 624 444 494 370 333 1239 814 629 740 18 74 Parts Sabotaged . | . . . . . . . . . . . . . . . . . . Parts Stolen . | . . . . . . . . . . . . . . . . . . Parts Stripped . | . . . . . . . . . . . . . . . . . . Power Chain Reactions 8 | . . . 3 3 2 . . . . . . . . . . . . Missiles Intercepted . | . . . . . . . . . . . . . . . . . . Alert | -11 -10 -9 -8 -7 -6 -6 -6 -5 -5 -5 -5 -5 -4 -4 -4 -4 -3 ------- Run | Jun Mat Mat Mat Fac Fac Was Fac Fac Ext Cet Arc Hub Fac Upp Upp Zhi Pro Peak Influence 1129 | . 187 380 267 292 291 1 333 180 265 369 150 1129 691 . . . . Initial 390 | . . 56 28 60 16 1 . 51 64 91 47 36 390 . . . . Average 145 | . 68 166 138 126 115 . 92 100 87 149 114 279 443 . . . . Maximum Alert Level 4 | . . 1 1 1 1 . 1 . 1 1 . 4 2 . . . . Low Security (%) 76 | 100 100 58 95 81 76 100 88 100 90 74 100 41 . . . . . Level 1 17 | . . 41 4 18 23 . 11 . 9 25 . 41 47 . . . . Level 2 4 | . . . . . . . . . . . . 12 52 . . . . Level 3 . | . . . . . . . . . . . . 1 . . . . . Level 4 . | . . . . . . . . . . . . 3 . . . . . Level 5 . | . . . . . . . . . . . . . . . . . . High Security . | . . . . . . . . . . . . . . . . . . Max Security . | . . . . . . . . . . . . . . . . . . Squads Dispatched 37 | . 1 . . 4 3 . 10 3 4 2 . 7 3 . . . . Investigation 8 | . 1 . . 1 1 . . 1 1 2 . 1 . . . . . Extermination 8 | . . . . 1 1 . 3 1 . . . 1 1 . . . . Reinforcement 14 | . . . . 1 1 . 4 1 3 . . 4 . . . . . Assault 1 | . . . . . . . . . . . . 1 . . . . . Garrison 6 | . . . . 1 . . 3 . . . . . 2 . . . . Intercept . | . . . . . . . . . . . . . . . . . . Searches Triggered . | . . . . . . . . . . . . . . . . . . Construction Impeded 2 | . . . . . . . 1 1 . . . . . . . . . Haulers Reinforced 3 | . . . . . . . 2 . . . . 1 . . . . . Active Scanning Responses . | . . . . . . . . . . . . . . . . . . Cargo Convoy Interrupts . | . . . . . . . . . . . . . . . . . . Stealth | -11 -10 -9 -8 -7 -6 -6 -6 -5 -5 -5 -5 -5 -4 -4 -4 -4 -3 --------- Run | Jun Mat Mat Mat Fac Fac Was Fac Fac Ext Cet Arc Hub Fac Upp Upp Zhi Pro Distress Signals 16 | . 1 1 2 . 3 . 3 1 3 1 . 1 . . . . . Communications Jammed 49 | . . . . . . . . . . . . 48 1 . . . . Distress Signals 49 | . . . . . . . . . . . . 48 1 . . . . Times Spotted 251 | . 7 15 14 12 11 5 37 15 26 23 4 46 9 11 12 1 3 Peak Tracking Total 13 | . 3 6 4 4 4 5 6 6 4 7 2 13 3 3 3 . 3 Tactical Retreats 14 | . 1 . . . 1 . 3 1 3 . . 5 . . . . . Traps | -11 -10 -9 -8 -7 -6 -6 -6 -5 -5 -5 -5 -5 -4 -4 -4 -4 -3 ------- Run | Jun Mat Mat Mat Fac Fac Was Fac Fac Ext Cet Arc Hub Fac Upp Upp Zhi Pro Traps Triggered 8 | . 1 . . . 1 . 3 . 3 . . . . . . . . Indirectly . | . . . . . . . . . . . . . . . . . . Trap Hack Attempts . | . . . . . . . . . . . . . . . . . . Triggered . | . . . . . . . . . . . . . . . . . . Disarmed . | . . . . . . . . . . . . . . . . . . Reprogrammed . | . . . . . . . . . . . . . . . . . . Reused . | . . . . . . . . . . . . . . . . . . Traps Extracted . | . . . . . . . . . . . . . . . . . . Installed . | . . . . . . . . . . . . . . . . . . Triggered 4 | . . . . . . . . . . . . . . . 1 . 3 Machines | -11 -10 -9 -8 -7 -6 -6 -6 -5 -5 -5 -5 -5 -4 -4 -4 -4 -3 ---------- Run | Jun Mat Mat Mat Fac Fac Was Fac Fac Ext Cet Arc Hub Fac Upp Upp Zhi Pro Machines Disabled 37 | . 1 . . . 2 . 4 . 3 4 1 11 11 . . . . Max in Single Turn 10 | . 1 . . . 2 . 1 . 2 2 1 10 3 . . . . Garrison Access 3 | . . . . 1 . . . . . . . 1 1 . . . . Network Hub 2 | . . . . . . . . . . . . 2 . . . . . Energy Cycler 2 | . . . . . . . . . 2 . . . . . . . . Machines Repaired . | . . . . . . . . . . . . . . . . . . Machines Sabotaged . | . . . . . . . . . . . . . . . . . . Overloaded Fab Kills . | . . . . . . . . . . . . . . . . . . Hacking | -11 -10 -9 -8 -7 -6 -6 -6 -5 -5 -5 -5 -5 -4 -4 -4 -4 -3 --------- Run | Jun Mat Mat Mat Fac Fac Was Fac Fac Ext Cet Arc Hub Fac Upp Upp Zhi Pro Machines Accessed 33 | . 2 3 6 3 1 . 5 1 4 4 . 3 1 . . . . Terminals 25 | . 1 3 4 2 . . 4 . 4 4 . 3 . . . . . Fabricators 1 | . . . . . . . 1 . . . . . . . . . . Repair Stations 3 | . . . 1 . 1 . . 1 . . . . . . . . . Recycling Units 1 | . 1 . . . . . . . . . . . . . . . . Scanalyzers 1 | . . . 1 . . . . . . . . . . . . . . Garrison Access 2 | . . . . 1 . . . . . . . . 1 . . . . Total Hacks 70 | . 2 7 11 8 7 . 7 3 5 11 . 6 3 . . . . Successful 51 | . 2 6 10 4 6 . 6 2 4 8 . 2 1 . . . . Failed 19 | . . 1 1 4 1 . 1 1 1 3 . 4 2 . . . . Catastrophic 3 | . . . . 1 . . . . . 1 . 1 . . . . . Database Lockouts . | . . . . . . . . . . . . . . . . . . Manual 27 | . 2 4 7 3 . . 4 . 2 . . 5 . . . . . Terminals 47 | . 1 7 7 6 . . 4 . 5 11 . 6 . . . . . Fabricators 3 | . . . . . . . 3 . . . . . . . . . . Repair Stations 12 | . . . 2 . 7 . . 3 . . . . . . . . . Recycling Units 1 | . 1 . . . . . . . . . . . . . . . . Scanalyzers 2 | . . . 2 . . . . . . . . . . . . . . Garrison Access 5 | . . . . 2 . . . . . . . . 3 . . . . Terminal Hacks 17 | . . 3 1 1 . . . . 3 8 . 1 . . . . . Record 9 | . . . . . . . . . . 8 . 1 . . . . . Robot Analysis 1 | . . 1 . . . . . . . . . . . . . . . Open Door 3 | . . . . . . . . . 3 . . . . . . . . Alert Level 2 | . . 1 1 . . . . . . . . . . . . . . Unreport Threat 1 | . . 1 . . . . . . . . . . . . . . . Zone Layout 1 | . . . . 1 . . . . . . . . . . . . . Fabricator Hacks 2 | . . . . . . . 2 . . . . . . . . . . Load Schematic 1 | . . . . . . . 1 . . . . . . . . . . Build 1 | . . . . . . . 1 . . . . . . . . . . Repair Station Hacks 10 | . . . 2 . 6 . . 2 . . . . . . . . . Scan Component 5 | . . . 1 . 3 . . 1 . . . . . . . . . Repair 5 | . . . 1 . 3 . . 1 . . . . . . . . . Recycling Unit Hacks . | . . . . . . . . . . . . . . . . . . Scanalyzer 2 | . . . 2 . . . . . . . . . . . . . . Insert Component 1 | . . . 1 . . . . . . . . . . . . . . Analyze 1 | . . . 1 . . . . . . . . . . . . . . Garrison Access Hacks 2 | . . . . 1 . . . . . . . . 1 . . . . Seal Access 2 | . . . . 1 . . . . . . . . 1 . . . . Unauthorized Hacks 18 | . 2 3 5 2 . . 4 . 1 . . 1 . . . . . Terminals 17 | . 1 3 5 2 . . 4 . 1 . . 1 . . . . . Track 1 | . . . 1 . . . . . . . . . . . . . . Botnet 16 | . 1 3 4 2 . . 4 . 1 . . 1 . . . . . Fabricators . | . . . . . . . . . . . . . . . . . . Repair Stations . | . . . . . . . . . . . . . . . . . . Recycling Units 1 | . 1 . . . . . . . . . . . . . . . . Tunnel 1 | . 1 . . . . . . . . . . . . . . . . Scanalyzers . | . . . . . . . . . . . . . . . . . . Garrison Access . | . . . . . . . . . . . . . . . . . . Data Cores Recovered 1 | . . . . 1 . . . . . . . . . . . . . Used . | . . . . . . . . . . . . . . . . . . Hacking Detections 19 | . . 1 5 2 1 . 4 1 2 2 . 1 . . . . . Full Trace Events 9 | . . 1 1 1 1 . . 1 1 2 . 1 . . . . . Feedback Events 4 | . . . . 1 . . . . 1 1 . 1 . . . . . Corruption 4 | . . . . 1 . . . . 1 1 . 1 . . . . . Feedback Blocked . | . . . . . . . . . . . . . . . . . . Robot Schematics Acquired . | . . . . . . . . . . . . . . . . . . Robots Built . | . . . . . . . . . . . . . . . . . . Authchips . | . . . . . . . . . . . . . . . . . . Time . | . . . . . . . . . . . . . . . . . . Total Robot Build Rating . | . . . . . . . . . . . . . . . . . . Part Schematics Acquired 1 | . . . 1 . . . . . . . . . . . . . . Parts Built 1 | . . . . . . . 1 . . . . . . . . . . Authchips . | . . . . . . . . . . . . . . . . . . Time 116 | . . . . . . . 116 . . . . . . . . . . Total Part Build Rating 3 | . . . . . . . 3 . . . . . . . . . . Parts Repaired 5 | . . . 1 . 3 . . 1 . . . . . . . . . Time 113 | . . . 26 . 65 . . 22 . . . . . . . . . Parts Recycled . | . . . . . . . . . . . . . . . . . . Recycled Matter . | . . . . . . . . . . . . . . . . . . Retrieved Matter . | . . . . . . . . . . . . . . . . . . Retrieved Components . | . . . . . . . . . . . . . . . . . . Parts Scanalyzed 1 | . . . 1 . . . . . . . . . . . . . . Part Schematics Acquired 1 | . . . 1 . . . . . . . . . . . . . . Parts Damaged . | . . . . . . . . . . . . . . . . . . Bothacking | -11 -10 -9 -8 -7 -6 -6 -6 -5 -5 -5 -5 -5 -4 -4 -4 -4 -3 ------------ Run | Jun Mat Mat Mat Fac Fac Was Fac Fac Ext Cet Arc Hub Fac Upp Upp Zhi Pro Used RIF Installer . | . . . . . . . . . . . . . . . . . . Robots Hacked . | . . . . . . . . . . . . . . . . . . Non-combat . | . . . . . . . . . . . . . . . . . . Combat . | . . . . . . . . . . . . . . . . . . Robot Hacks Applied . | . . . . . . . . . . . . . . . . . . Relay Couplers Released 2 | . . . . . . . . . . . . 2 . . . . . Machine Destruction 2 | . . . . . . . . . . . . 2 . . . . . Fabnet Peak Effective % . | . . . . . . . . . . . . . . . . . . Robots Rewired . | . . . . . . . . . . . . . . . . . . Allies Hacked . | . . . . . . . . . . . . . . . . . . Hacks Repelled . | . . . . . . . . . . . . . . . . . . Allies | -11 -10 -9 -8 -7 -6 -6 -6 -5 -5 -5 -5 -5 -4 -4 -4 -4 -3 -------- Run | Jun Mat Mat Mat Fac Fac Was Fac Fac Ext Cet Arc Hub Fac Upp Upp Zhi Pro Total Allies . | . . . . . . . . . . . . . . . . . . Largest Group . | . . . . . . . . . . . . . . . . . . Highest-Rated Group . | . . . . . . . . . . . . . . . . . . Highest-Rated Ally . | . . . . . . . . . . . . . . . . . . Total Orders . | . . . . . . . . . . . . . . . . . . Ally Attacks . | . . . . . . . . . . . . . . . . . . Total Damage . | . . . . . . . . . . . . . . . . . . Kills . | . . . . . . . . . . . . . . . . . . Allies Corrupted . | . . . . . . . . . . . . . . . . . . Allies Melted 1 | . . . . . . . . . 1 . . . . . . . . Intel | -11 -10 -9 -8 -7 -6 -6 -6 -5 -5 -5 -5 -5 -4 -4 -4 -4 -3 ------- Run | Jun Mat Mat Mat Fac Fac Was Fac Fac Ext Cet Arc Hub Fac Upp Upp Zhi Pro Robot Analysis Total 1 | . . 1 . . . . . . . . . . . . . . . Derelict Logs Recovered 3 | . . . . . . . . . . . . . . 1 2 . . Drone Launches . | . . . . . . . . . . . . . . . . . . Drone Recoveries . | . . . . . . . . . . . . . . . . . . Exploration | -11 -10 -9 -8 -7 -6 -6 -6 -5 -5 -5 -5 -5 -4 -4 -4 -4 -3 ------------- Run | Jun Mat Mat Mat Fac Fac Was Fac Fac Ext Cet Arc Hub Fac Upp Upp Zhi Pro Turns Passed 11362 | 53 362 681 737 443 461 248 1736 606 1463 570 186 746 659 871 583 584 373 Spaces Moved 4832 | 36 163 305 302 178 206 245 721 315 652 218 73 302 257 295 231 213 120 Core 328 | 8 . . . . . 109 60 . . . . . . . . 31 120 Treads 1532 | . . . . . . . . . . 192 73 302 257 295 231 182 . Legs 2956 | 28 163 305 286 178 206 136 661 315 652 26 . . . . . . . Wheels . | . . . . . . . . . . . . . . . . . . Hover 16 | . . . 16 . . . . . . . . . . . . . . Flight . | . . . . . . . . . . . . . . . . . . Fastest Speed 50 | 50 190 190 125 195 126 50 50 120 120 160 160 160 160 240 160 240 50 Average Speed 184 | 104 190 190 194 195 136 93 162 137 189 170 160 160 203 277 218 271 266 Slowest Speed 700 | 120 190 190 300 195 196 200 500 190 190 330 160 160 320 320 240 500 700 Overloaded Moves . | . . . . . . . . . . . . . . . . . . Propulsion Burnouts . | . . . . . . . . . . . . . . . . . . Robots Hopped . | . . . . . . . . . . . . . . . . . . Cave-ins Triggered 1 | . . . . . . . . . . . . . . . . 1 . Teleports 1 | . . . . . . . . . . . . . . . . 1 . Exploration Rate (%) 39 | 3 35 36 32 6 8 76 21 7 83 79 77 39 12 55 48 75 21 Regions Visited 17 Branch Regions 8 Pre-discovered Areas 1 | . 1 . . . . . . . . . . . . . . . . Known Exits Taken 15 | 1 1 1 1 1 . . 1 1 1 1 1 1 1 1 1 1 . Unknown Exits Taken . | . . . . . . . . . . . . . . . . . . Scrap Searched 3 | . . . . . . . . . . . . . . . 2 . 1 Spaces Dug 1 | . . . . . . . . . . . . . 1 . . . . Terrain Destroyed 474 | . . . 14 9 11 . 4 5 23 4 9 332 33 8 22 . . Melee . | . . . . . . . . . . . . . . . . . . Projectile 101 | . . . . . . . 3 . 2 4 9 45 8 8 22 . . AOE 367 | . . . 14 9 11 . . . 21 . . 287 25 . . . . Terrain Rammed . | . . . . . . . . . . . . . . . . . . Walls Destroyed . | . . . . . . . . . . . . . . . . . . Machines Disabled . | . . . . . . . . . . . . . . . . . . Actions | -11 -10 -9 -8 -7 -6 -6 -6 -5 -5 -5 -5 -5 -4 -4 -4 -4 -3 --------- Run | Jun Mat Mat Mat Fac Fac Was Fac Fac Ext Cet Arc Hub Fac Upp Upp Zhi Pro Total 6183 | 51 193 357 404 229 318 262 1128 400 743 291 108 424 326 317 263 219 150 Wait 501 | . 13 27 37 23 71 11 265 23 7 . . 15 6 . 3 . . Move 4816 | 35 162 304 301 177 206 244 720 314 651 217 72 301 256 294 230 212 120 Hop . | . . . . . . . . . . . . . . . . . . Pick Up 140 | 9 4 2 16 3 4 3 26 12 5 7 9 18 11 2 6 3 . Fast Attach . | . . . . . . . . . . . . . . . . . . Attach 112 | 7 1 2 4 3 6 2 26 9 3 7 4 9 12 5 3 2 7 Detach 6 | . . . 1 . . . . . 1 . . . 4 . . . . Swap 35 | . 2 . 12 2 1 1 . 2 4 3 . 5 2 . . 1 . Drop 42 | . . . 10 1 2 . 2 3 2 1 6 12 2 1 . . . Fire 498 | . 11 22 23 20 28 . 79 37 59 56 17 62 33 15 21 1 14 Melee . | . . . . . . . . . . . . . . . . . . Ram 10 | . . . . . . 1 . . . . . . . . . . 9 Kick 1 | . . . . . . . . . 1 . . . . . . . . Crush 2 | . . . . . . . . . . . . 2 . . . . . Escape Stasis 20 | . . . . . . . 10 . 10 . . . . . . . . Rewire . | . . . . . . . . . . . . . . . . . . Trap . | . . . . . . . . . . . . . . . . . . Miscellaneous . | . . . . . . . . . . . . . . . . . . Route ------- -11/Junkyard -10/Materials (discovered 2 exits: *Mat / *Min) -9/Materials (discovered 2 exits: *Mat / *Sto) -8/Materials -7/Factory -6/Factory -6/Waste -6/Factory -5/Factory -5/Extension (discovered 3 exits: *Fac x2 / *Cet) -5/Cetus -5/Archives -5/Hub_04(d) (discovered 2 exits: *Fac x2) -4/Factory -4/Upper Caves -4/Upper Caves (discovered 2 exits: *Res / *Zhi) -4/Zhirov -3/Proximity Caves History --------- Turn | Location | Event 36 | -11/Junkyard | Identified exit to Materials 36 | -11/Junkyard | Discovered exit to Materials (range 16) 54 | -11/Junkyard | Entered Materials 54 | -10/Materials | Evolved 1 slot: Utility x1 224 | -10/Materials | Identified exit to Mines 224 | -10/Materials | Discovered exit to Mines (range 13) 302 | -10/Materials | Build established: Hacker-Mutant 390 | -10/Materials | Identified exit to Materials 390 | -10/Materials | Discovered exit to Materials (range 15) 416 | -10/Materials | Entered another Materials area 416 | -9/Materials | Evolved 2 slots: Utility x1, Weapon x1 859 | -9/Materials | Build established: Hacker-Tank 1027 | -9/Materials | Identified exit to Materials 1027 | -9/Materials | Discovered exit to Materials (range 9) 1027 | -9/Materials | Identified exit to Storage 1027 | -9/Materials | Discovered exit to Storage (range 8) 1097 | -9/Materials | Entered another Materials area 1097 | -8/Materials | Evolved 2 slots: Utility x2 1379 | -8/Materials | Repaired Propulsion Shielding 1755 | -8/Materials | Identified exit to Factory 1755 | -8/Materials | Discovered exit to Factory (range 16) 1834 | -8/Materials | Entered Factory 1834 | -7/Factory | Evolved 2 slots: Power x1, Utility x1 2181 | -7/Factory | Garrison activated, responded to threat 2252 | -7/Factory | Identified exit to Factory 2252 | -7/Factory | Discovered exit to Factory (range 12) 2277 | -7/Factory | Entered another Factory area 2277 | -6/Factory | Evolved 2 slots: Propulsion x1, Weapon x1 2684 | -6/Factory | Repaired Imp. Medium Armor Plating 2699 | -6/Factory | Repaired Heat Sink 2731 | -6/Factory | Repaired Hvy. EM Shotgun 2738 | -6/Factory | Manually triggered Chute Trap 2738 | -6/Factory | Sucked down chute 2738 | -6/Factory | Entered Waste 2774 | -6/Waste | Spotted C-40 Crusher 2783 | -6/Waste | Found Prototype Launcher 2808 | -6/Waste | Spotted C-40 Crusher 2810 | -6/Waste | Spotted C-40 Crusher 2858 | -6/Waste | Spotted C-40 Crusher 2873 | -6/Waste | Crushed by Compactor (1 part destroyed, 1 dropped) 2878 | -6/Waste | Crushed by Compactor (1 part destroyed, 1 dropped) 2878 | -6/Waste | Crushed by Compactor (1 part destroyed, 1 dropped) 2881 | -6/Waste | Crushed by Compactor (1 part destroyed, 1 dropped) 2885 | -6/Waste | Crushed by Compactor (1 part destroyed, 2 dropped) 2890 | -6/Waste | Spotted C-40 Crusher 2916 | -6/Waste | Lost 6 parts (1p3n2w) 2938 | -6/Waste | Crushed by Compactor (1 part destroyed, 2 dropped) 2939 | -6/Waste | Crushed by Compactor (1 part destroyed, 1 dropped) 2980 | -6/Waste | Identified exit to Factory 2980 | -6/Waste | Discovered exit to Factory (range 12) 2986 | -6/Waste | Entered Factory 3291 | -6/Factory | Build established: Hacker-Skirmisher 3501 | -6/Factory | Lost 3 parts (2u1w) 3585 | -6/Factory | Spotted B-75 Beast 3603 | -6/Factory | Destroyed B-75 Beast 3739 | -6/Factory | Core integrity fell below 50% 3768 | -6/Factory | Lost 6 parts (2p2n2w) 4129 | -6/Factory | Build established: Scavenger-Gunner 4214 | -6/Factory | Fabricated Hvy. EM Shotgun (x1) 4226 | -6/Factory | Garrison activated, responded to threat 4697 | -6/Factory | Identified exit to Factory 4697 | -6/Factory | Discovered exit to Factory (range 15) 4722 | -6/Factory | Entered another Factory area 4722 | -5/Factory | Evolved 2 slots: Power x1, Propulsion x1 4844 | -5/Factory | Repaired Imp. Deuterium Engine 5090 | -5/Factory | Build established: Scavenger-Tank 5290 | -5/Factory | Identified exit to Extension 5290 | -5/Factory | Discovered exit to Extension (range 15) 5328 | -5/Factory | Entered Extension 5609 | -5/Extension | Energy Cycler disabled 5609 | -5/Extension | Rescued a captive Derelict 5609 | -5/Extension | Rescued a captive Derelict 5610 | -5/Extension | Rescued a captive Derelict 6279 | -5/Extension | Spotted B-75 Beast 6380 | -5/Extension | Identified exit to Factory 6380 | -5/Extension | Discovered exit to Factory (range 14) 6777 | -5/Extension | Discovered exit to Factory (range 10) 6779 | -5/Extension | Identified exit to Cetus 6779 | -5/Extension | Discovered exit to Cetus (range 6) 6791 | -5/Extension | Entered Cetus 6815 | -5/Cetus | Spotted Cetus Guard 6815 | -5/Cetus | Spotted Cetus Guard 6833 | -5/Cetus | Destroyed Cetus Guard 6833 | -5/Cetus | Spotted Cetus Guard 6843 | -5/Cetus | Spotted Cetus Guard 6854 | -5/Cetus | Destroyed Cetus Guard 6868 | -5/Cetus | Destroyed Cetus Guard 6884 | -5/Cetus | Destroyed Cetus Guard 6909 | -5/Cetus | Lost 11 parts (1p3n4u3w) 7073 | -5/Cetus | Destroyed 10 combat bots 7275 | -5/Cetus | Found a strange terminal 7337 | -5/Cetus | Identified exit to Archives 7337 | -5/Cetus | Discovered exit to Archives (range 15) 7361 | -5/Cetus | Entered Archives 7496 | -5/Archives | Unable to access archive contents 7522 | -5/Archives | Unable to access archive contents 7528 | -5/Archives | Identified exit to Hub_04(d) 7528 | -5/Archives | Discovered exit to Hub_04(d) (range 13) 7547 | -5/Archives | Entered Hub_04(d) 7856 | -5/Hub_04(d) | Discovered exit to Factory (range 11) 8038 | -5/Hub_04(d) | Found Unknown Protection 8040 | -5/Hub_04(d) | Identified Hvy. Reactive Plating 8166 | -5/Hub_04(d) | Destroyed 7 combat bots 8199 | -5/Hub_04(d) | Discovered exit to Factory (range 7) 8257 | -5/Hub_04(d) | Network Hub disabled 8257 | -5/Hub_04(d) | Network Hub disabled 8258 | -5/Hub_04(d) | System corruption reached 10% 8258 | -5/Hub_04(d) | Spotted Lightning 8259 | -5/Hub_04(d) | Spotted Lightning 8266 | -5/Hub_04(d) | Spotted Lightning 8267 | -5/Hub_04(d) | Destroyed Lightning 8277 | -5/Hub_04(d) | Spotted Lightning 8286 | -5/Hub_04(d) | Spotted Lightning 8293 | -5/Hub_04(d) | Entered Factory 8293 | -4/Factory | Evolved 2 slots: Propulsion x1, Weapon x1 8319 | -4/Factory | Build established: Scavenger-Gunner 8321 | -4/Factory | Lost 7 parts (2p2n2u1w) 8936 | -4/Factory | Identified exit to Upper Caves 8936 | -4/Factory | Discovered exit to Upper Caves (range 8) 8952 | -4/Factory | Entered Upper Caves 9384 | -4/Upper Caves | Build established: Scavenger-Skirmisher 9410 | -4/Upper Caves | Attracted the attention of an 0b10 outpost 9768 | -4/Upper Caves | Identified exit to Upper Caves 9768 | -4/Upper Caves | Discovered exit to Upper Caves (range 11) 9823 | -4/Upper Caves | Entered another Upper Caves area 9879 | -4/Upper Caves | Identified exit to Zhirov 9908 | -4/Upper Caves | Attracted the attention of an 0b10 checkpoint 9923 | -4/Upper Caves | Identified exit to Research 9923 | -4/Upper Caves | Discovered exit to Research (range 5) 9956 | -4/Upper Caves | Learned Research non-interactive machine intel 10406 | -4/Upper Caves | Entered Zhirov 10406 | -4/Zhirov | Identified exit to Proximity Caves 10406 | -4/Zhirov | Discovered exit to Proximity Caves (range 3) 10450 | -4/Zhirov | Met Zhirov 10524 | -4/Zhirov | Zhirov requested help retrieving the SGEMP Prototype 10625 | -4/Zhirov | Found Alien Artifact 10626 | -4/Zhirov | Identified Transdimensional Reconstructor 10626 | -4/Zhirov | Warped through subspace 10743 | -4/Zhirov | Found Alien Artifact 10744 | -4/Zhirov | Identified Integrated Dissipator 10744 | -4/Zhirov | Installed Integrated Dissipator, increased core heat dissipation (+20) 10840 | -4/Zhirov | Attacked by Zhirov 10853 | -4/Zhirov | Zhirov detonated his lab 10853 | -4/Zhirov | Cloak Generator disabled 10869 | -4/Zhirov | Crushed by falling debris 10869 | -4/Zhirov | Core integrity fell below 50% 10900 | -4/Zhirov | Lost 13 parts (3p3n3u4w) 10990 | -4/Zhirov | Entered Proximity Caves 11275 | -3/Proximity Caves | Spotted B-86 Titan 11282 | -3/Proximity Caves | Build established: Hacker-Gunner 11321 | -3/Proximity Caves | Core integrity fell below 20% 11354 | -3/Proximity Caves | Lost 10 parts (1p5u4w) 11363 | -3/Proximity Caves | Destroyed by S-43 Plague with Heavy Machine Gun Last Messages --------------- 11306_ B-86 Titan exits siege mode. 11307_ Adv. Heat Sink destroyed. 11307_ Slug penetrates Wall. 11310_ Knocked back. 11310_ Penetrated by Slug. 11311_ Acquired 22 matter. 11312_ B-86 Titan activates siege mode. 11314_ Hpw. Shotgun destroyed. 11314_ Adv. Heat Sink destroyed. 11314_ Slug penetrates Wall. 11319_ Slammed into B-86 Titan. 11320_ Knocked back. 11320_ Penetrated by Slug. 11323_ Adv. Sensor Array destroyed. 11323_ Knocked back. 11324_ Acquired 3 matter. 11328_ B-86 Titan exits siege mode. 11357_ Slammed into S-43 Plague. 11363_ Adv. System Shield destroyed. 11363_ System corrupted by crushing effect (+2). Map ----- +----------------------------------------------------+ | | | | | | | | | ?????????????????????????????????????????????????? | | ?????????????????????????????????????????????????? | | ?????????????????????????????????????????????????? | | ?????????????????????????????????????????????????? | | ?????????????????????????????????????????????????? | | ?????????????????????????????????????????????????? | | ?????????????????????????????????????????????????? | | ?????????????????????????????????????????????????? | | ?????????????????????????????????????????????????? | | ?????????????????????????????????????????????????? | | ?????????????????????????????????????????????????? | | ??????????????????????????????#######????????????? | | ??????????????????????????????#"""""#????????????? | | ??????????????????????????????#"""""#????????????? | | ?######?????#####?????????????#"""""#????????????? | | ## ###??## #???????????#### ####??????????? | | # #### #???????????# # # #??????????? | | ## #???????????# ##?????????? | | ## ### ##??????????## #?????????? | | #?## ##### #???????????# ###?????????? | | ####??###???# ############# ##??????????? | | ????????????# @ s ##?????????? | | ????????????## s #?????????? | | ?????????????# ##### #?????????? | | ???????? #???# ## #?????????? | | ?????? ### ##?????????? | | ???? ### #?# ##??????????? | | ???? ????## ## #?####???????????? | | ???? ???????## ## ### ##????????????????? | | ?????????????#### ### ##?###?????????????????? | | ????????????????## ?######??????????????????????? | | ?????????????????# ?????????????????????????????? | | ?????????????????## ????????????????????????????? | | ??????????????????? ????????????????????????????? | | ??????????????????? ???????????????????????????? | | ???????????????????# ????????????????????????????? | | ???????????????????? ????????????????????????????? | | ?????????????????????????????????????????????????? | | ?????????????????????????????????????????????????? | | ?????????????????????????????????????????????????? | | ?????????????????????????????????????????????????? | | ?????????????????????????????????????????????????? | | ?????????????????????????????????????????????????? | | ?????????????????????????????????????????????????? | | ?????????????????????????????????????????????????? | | ?????????????????????????????????????????????????? | +----------------------------------------------------+ Best States ------------- Heat Dissipation 115 Energy Generation 55 Energy Capacity 795 Matter Stores 400 Matter Capacity 400 Sight Range 16 Robot Scan Range 16 Terrain Scan Range 14 Terrain Scan Density 10 Jamming Range 14 Base Temperature (-) 150 Armor Coverage 825 Resistance: KI 75 Resistance: TH 35 Resistance: EX 35 Resistance: EM 55 Resistance: I 35 Resistance: S 35 Resistance: P 35 Core Shielding 30 Propulsion Shielding 33 Point Defense Rating 160 Evasion (%) 55 Target Analysis 5 Armor Integrity Analysis 40 Recoil Reduction 5 Kinecelleration 30 Offensive Hacking 30 Defensive Hacking 14 Item Schematics ----------------- Hvy. EM Shotgun | -8/Materials | Scanalyzed Robot Schematics ------------------ None Fabricated ------------ Hvy. EM Shotgun | x1 | -6/Factory Alien Tech Used ----------------- Transdimensional Reconstructor Integrated Dissipator Achievements -------------- Gunslinger Wheee! Challenges ------------ None Game ------ Seed StealthAblativeBeam Manual? 0 Play Time 01:10:00 Cumulative 57.3 hours Start 2023.08.27 @ 12:02:19 End 2023.08.27 @ 23:13:20 Sessions 3 Manual Loads 0 Difficulty Explorer Special Mode None Game No. 83 Rogue 0 Adventurer 1 Explorer 82 Win Type - Total 0 Types 0/0/0/0/0/0/0/0/0 Lore% 45 Gallery% 52 Achievement% 49 Wizard Run 0 Options --------- ASCII 0 Keyboard 0 Movement Mouse Keybinds 0 Fullscreen 2 Font 18/SmallcapsGlow Map View 76x50 Tactical HUD 1 Map Filters NONE Filters NONE Steam 1 RUN: 9757e6e4-a789-43e8-bbfb-fe4c89632386